bitfinex-derivatives/quotes_BTCF0:USTF0_20251128
["timestamp","ask_amount","ask_price","bid_price","bid_amount"]
[1764302352300,0.4369598,91267.0,91266.0,0.05761]
[1764302352499,0.4369598,91267.0,91264.0,0.02676237]
[1764302352500,0.01696,91265.0,91264.0,0.01304237]
[1764302352807,0.0169603,91263.0,91262.0,0.07878235]
[1764302353003,0.4569603,91263.0,91262.0,0.07878235]
[1764302353199,0.006,91261.0,91260.0,0.10060235]
[1764302353414,0.446,91261.0,91260.0,0.10060235]
[1764302355119,0.446,91261.0,91260.0,0.02182]
[1764302356008,0.446,91261.0,91260.0,0.04465]
[1764302357510,0.446,91261.0,91260.0,0.05787]
[1764302380132,0.446,91261.0,91260.0,0.13665235]
[1764302380841,0.446,91261.0,91260.0,0.05787]
[1764302381744,0.0169597,91268.0,91267.0,0.04279]
[1764302381938,0.126,91268.0,91267.0,0.04279]
[1764302383033,0.127,91268.0,91267.0,0.04279]
[1764302383229,0.1379597,91268.0,91267.0,0.04279]
[1764302384442,0.1369597,91268.0,91267.0,0.04279]
[1764302385744,0.4169597,91268.0,91267.0,0.04279]
[1764302386244,0.1669597,91268.0,91267.0,0.04279]
[1764302387342,0.1669597,91268.0,91267.0,0.04309]
[1764302388643,0.3769597,91268.0,91267.0,0.04309]
[1764302399947,0.3769597,91268.0,91267.0,0.12175958]
[1764302400244,0.366,91268.0,91267.0,0.12175958]
[1764302400447,0.366,91268.0,91267.0,0.04309]
[1764302400648,0.3769597,91268.0,91267.0,0.04309]
[1764302400949,0.3769597,91268.0,91267.0,0.07894412]
[1764302401144,0.3769597,91268.0,91267.0,0.10002412]
[1764302401350,0.3769597,91268.0,91267.0,0.12173412]
[1764302401546,0.3769597,91268.0,91267.0,0.04309]
[1764302402046,0.3769597,91268.0,91267.0,0.12173159]
[1764302402236,0.3769597,91268.0,91267.0,0.04309]
[1764302403947,0.3769597,91268.0,91267.0,0.02138]
[1764302404244,0.3769597,91268.0,91267.0,0.0003]
[1764302404752,0.7969597,91268.0,91267.0,0.0003]
[1764302406948,0.5169597,91268.0,91267.0,0.0003]
[1764302408450,0.7469597,91268.0,91267.0,0.0003]
[1764302411642,0.7469597,91268.0,91267.0,0.0013]
[1764302413645,0.3769597,91268.0,91267.0,0.0013]
[1764302413949,0.5369597,91268.0,91267.0,0.0013]
[1764302414150,0.7569597,91268.0,91267.0,0.0013]
[1764302415050,0.7569597,91268.0,91267.0,0.0003]
[1764302415244,0.7569597,91268.0,91267.0,0.0013]
[1764302415649,0.7569597,91268.0,91267.0,0.0003]
[1764302423556,0.7569597,91268.0,91267.0,0.0013]
[1764302424155,0.7569597,91268.0,91267.0,0.0003]
[1764302430758,0.7579597,91268.0,91267.0,0.0003]
[1764302434862,0.7579597,91268.0,91267.0,0.04433]
[1764302435660,0.5179597,91268.0,91267.0,0.04433]
[1764302436168,0.3779597,91268.0,91267.0,0.04433]
[1764302438165,0.3779597,91268.0,91267.0,0.0003]
[1764302438362,0.0169604,91262.0,91261.0,0.07864655]
[1764302438664,0.006,91260.0,91253.0,0.07864655]
[1764302438864,0.786,91260.0,91253.0,0.07864655]
[1764302439369,0.786,91260.0,91252.0,0.07864655]
[1764302439869,0.786,91260.0,91259.0,0.01455106]
[1764302440869,0.786,91260.0,91259.0,0.01355106]
[1764302442264,0.786,91260.0,91259.0,0.07258205]
[1764302444071,0.396,91260.0,91259.0,0.11661205]
[1764302444268,0.396,91260.0,91259.0,0.05758106]
[1764302445274,0.746,91260.0,91259.0,0.05758106]
[1764302446366,0.746,91260.0,91259.0,0.05858106]
[1764302446870,0.746,91260.0,91259.0,0.05758106]
[1764302447069,0.746,91260.0,91259.0,0.05858106]
[1764302447578,0.466,91260.0,91259.0,0.05858106]
[1764302447779,0.363,91260.0,91259.0,0.05858106]
[1764302447972,0.53256,91260.0,91259.0,0.05858106]
[1764302448373,0.52256,91260.0,91259.0,0.05858106]
[1764302448573,0.90256,91260.0,91259.0,0.05858106]
[1764302448984,0.70256,91260.0,91259.0,0.05858106]
[1764302449585,0.95256,91260.0,91259.0,0.05858106]
[1764302450190,0.95256,91260.0,91259.0,0.06058106]
[1764302450588,0.95856,91260.0,91259.0,0.06058106]
[1764302451886,0.95856,91260.0,91259.0,0.05758106]
[1764302452086,0.95856,91260.0,91259.0,0.06058106]
[1764302452496,0.95856,91260.0,91259.0,0.05758106]
[1764302452688,0.95856,91260.0,91259.0,0.06058106]
[1764302454600,0.95856,91260.0,91259.0,0.13925572]
[1764302454794,0.95856,91260.0,91259.0,0.06058106]
[1764302455104,0.95856,91260.0,91259.0,0.05758106]
[1764302455395,0.95856,91260.0,91259.0,0.06058106]
[1764302455793,0.95856,91260.0,91259.0,0.05958106]
[1764302456693,0.95256,91260.0,91259.0,0.07054176]
[1764302456897,0.17256,91260.0,91259.0,0.49054176]
[1764302457198,0.01412384,91269.0,91268.0,0.04403]
[1764302457386,0.88564384,91269.0,91268.0,0.04403]
[1764302460796,1.27564384,91269.0,91268.0,0.04403]
[1764302460990,0.01696,91265.0,91264.0,0.10139816]
[1764302461190,0.87696,91265.0,91264.0,0.04403]
[1764302462001,0.0169604,91262.0,91261.0,0.07863816]
[1764302462201,0.0169606,91260.0,91259.0,0.01355106]
[1764302462401,1.4294806,91260.0,91259.0,0.01355106]
[1764302467103,1.4294806,91260.0,91259.0,0.05856106]
[1764302467602,1.4294806,91260.0,91259.0,0.03603106]
[1764302468507,1.0594806,91260.0,91259.0,0.03603106]
[1764302468805,1.0594806,91260.0,91259.0,0.03703106]
[1764302468806,1.1794806,91260.0,91259.0,0.03703106]
[1764302474599,1.1794806,91260.0,91259.0,0.03603106]
[1764302474800,1.1794806,91260.0,91259.0,0.03703106]
[1764302475002,1.4794806,91260.0,91259.0,0.01455106]
[1764302476706,1.4794806,91260.0,91259.0,0.01355106]
[1764302477011,1.4794806,91260.0,91259.0,0.00203213]
[1764302477210,0.016963,91240.0,91239.0,0.03606]
[1764302477407,1.429523,91240.0,91239.0,0.07431845]
[1764302479610,1.429523,91240.0,91239.0,0.07831845]
[1764302480712,1.149523,91240.0,91239.0,0.07831845]
[1764302481310,1.03856,91240.0,91239.0,0.07831845]
[1764302481515,0.82856,91240.0,91239.0,0.08928155]
[1764302486521,0.82856,91240.0,91239.0,0.07831845]
[1764302501823,0.82856,91240.0,91239.0,0.07636845]
[1764302502922,0.82856,91240.0,91239.0,0.04171845]
[1764302503118,0.82856,91240.0,91239.0,0.01927845]
[1764302504319,1.19856,91240.0,91239.0,0.004]
[1764302508336,0.009,91236.0,91235.0,0.0159975]
[1764302508538,0.006,91232.0,91231.0,0.05904904]
[1764302508738,0.0169641,91231.0,91230.0,0.00016434]
[1764302508928,1.4395241,91231.0,91230.0,0.00016434]
[1764302509540,1.4395241,91231.0,91230.0,0.01644519]
[1764302510232,1.4395241,91231.0,91230.0,0.01744519]
[1764302511222,1.4395241,91231.0,91230.0,0.02244519]
[1764302514132,0.0169663,91213.0,91212.0,0.05709]
[1764302514440,0.9695663,91213.0,91212.0,0.07331021]
[1764302515740,0.9695663,91213.0,91212.0,0.07931021]
[1764302515937,0.9695663,91213.0,91212.0,0.08031021]
[1764302520438,1.3795663,91213.0,91212.0,0.02322021]
[1764302520833,0.0169671,91206.0,91203.0,0.00016443]
[1764302521038,0.006,91204.0,91203.0,0.00016443]
[1764302521245,1.216,91204.0,91203.0,0.00016443]
[1764302521950,1.216,91204.0,91203.0,0.00216443]
[1764302522246,1.22,91204.0,91203.0,0.02460443]
[1764302522649,1.22,91204.0,91203.0,0.02260443]
[1764302522841,1.22,91204.0,91203.0,0.04483443]
[1764302523645,1.22,91204.0,91203.0,0.00016443]
[1764302523846,1.22,91204.0,91203.0,0.02270443]
[1764302525047,1.22,91204.0,91203.0,0.00016443]
[1764302525446,1.22,91204.0,91203.0,0.01679551]
[1764302528648,1.22,91204.0,91203.0,0.06156551]
[1764302528649,0.82,91204.0,91203.0,0.06156551]
[1764302528955,1.2,91204.0,91203.0,0.06156551]
[1764302532757,1.07,91204.0,91203.0,0.06156551]
[1764302533759,0.69,91204.0,91203.0,0.06156551]
[1764302533957,0.86264,91204.0,91203.0,0.06156551]
[1764302543962,1.27264,91204.0,91203.0,0.06156551]
[1764302544665,1.27264,91204.0,91203.0,0.03933551]
[1764302545257,1.27264,91204.0,91203.0,0.01679551]
[1764302546458,1.02264,91204.0,91203.0,0.06163551]
[1764302547859,0.86264,91204.0,91203.0,0.06163551]
[1764302551171,1.26264,91204.0,91203.0,0.06163551]
[1764302551564,1.26264,91204.0,91203.0,0.07450551]
[1764302551971,1.28656025,91204.0,91203.0,0.07450551]
[1764302552970,1.26264,91204.0,91203.0,0.07450551]
[1764302553470,0.87264,91204.0,91203.0,0.07450551]
[1764302558686,0.86264,91204.0,91203.0,0.07450551]
[1764302560087,0.88657095,91204.0,91203.0,0.07450551]
[1764302561393,0.86264,91204.0,91203.0,0.08547301]
[1764302561598,0.85664,91204.0,91203.0,0.08547301]
[1764302561893,0.33,91204.0,91203.0,0.08547301]
[1764302562084,0.05,91204.0,91203.0,0.08547301]
[1764302562287,0.11888,91206.0,91203.0,0.08547301]
[1764302562486,0.10948682,91206.0,91205.0,0.0443]
[1764302563886,0.11548682,91206.0,91205.0,0.0443]
[1764302564590,0.11648682,91206.0,91205.0,0.0443]
[1764302566796,0.007,91206.0,91205.0,0.0443]
[1764302568197,0.007,91206.0,91205.0,0.12296528]
[1764302571298,0.007,91206.0,91205.0,0.0443]
[1764302574402,0.01,91206.0,91205.0,0.0443]
[1764302574703,0.007,91206.0,91205.0,0.0443]
[1764302576105,0.463,91206.0,91205.0,0.0443]
[1764302576707,0.047,91206.0,91205.0,0.0443]
[1764302577088,0.007,91206.0,91205.0,0.0443]
[1764302578900,0.01,91206.0,91205.0,0.0443]
[1764302579997,0.01,91206.0,91205.0,0.12296528]
[1764302582003,0.007,91206.0,91205.0,0.12296528]
[1764302582206,0.383,91206.0,91205.0,0.12296528]
[1764302584206,0.383,91206.0,91205.0,0.12296484]
[1764302584407,0.383,91206.0,91205.0,0.0443]
[1764302585207,0.3939671,91206.0,91205.0,0.12296484]
[1764302585598,0.7739671,91206.0,91205.0,0.0443]
[1764302589114,0.7739671,91206.0,91205.0,0.12296484]
[1764302589804,0.7739671,91206.0,91205.0,0.0443]
[1764302592108,0.377,91206.0,91205.0,0.0443]
[1764302594125,0.006,91205.0,91204.0,0.0109673]
[1764302594309,0.0169689,91191.0,91190.0,0.13777341]
[1764302594511,0.010969,91190.0,91189.0,0.10031086]
[1764302594807,0.836969,91190.0,91189.0,0.04428]
[1764302595009,0.0169694,91187.0,91186.0,0.10031086]
[1764302595214,0.006,91186.0,91185.0,0.01318]
[1764302595417,0.7561183,91186.0,91185.0,0.03462]
[1764302595810,0.7561183,91186.0,91185.0,0.05746]
[1764302596811,0.7571183,91186.0,91185.0,0.05746]
[1764302613725,0.7571183,91186.0,91185.0,0.05776]
[1764302620532,0.7571183,91186.0,91185.0,0.0003]
[1764302621226,0.7571183,91186.0,91185.0,0.02216]
[1764302621430,0.7571183,91186.0,91185.0,0.04324]
[1764302622643,0.3911183,91186.0,91185.0,0.04324]
[1764302623351,0.3941183,91186.0,91185.0,0.04324]
[1764302623643,0.3971183,91186.0,91185.0,0.04324]
[1764302626940,0.3911183,91186.0,91185.0,0.04324]
[1764302627452,0.3971183,91186.0,91185.0,0.04324]
[1764302635753,0.3911183,91186.0,91185.0,0.04324]
[1764302636361,0.3941183,91186.0,91185.0,0.04324]
[1764302636858,0.0011183,91186.0,91185.0,0.04324]
[1764302637458,0.00316443,91196.0,91195.0,0.04294]
[1764302637661,0.25316443,91196.0,91195.0,0.04294]
[1764302637958,0.25616443,91196.0,91195.0,0.04294]
[1764302639055,0.25616443,91196.0,91195.0,0.0539084]
[1764302639862,0.25916443,91196.0,91195.0,0.0539084]
[1764302640563,0.00316443,91196.0,91195.0,0.0539084]
[1764302641460,0.00616443,91196.0,91195.0,0.0539084]
[1764302641660,0.00916443,91196.0,91195.0,0.0539084]
[1764302641860,0.00916443,91196.0,91195.0,0.02186]
[1764302642047,0.006,91193.0,91192.0,0.05867]
[1764302643555,0.008,91193.0,91192.0,0.05867]
[1764302645763,0.008,91193.0,91192.0,0.07614931]
[1764302646757,0.005,91193.0,91192.0,0.07614931]
[1764302647163,0.008,91193.0,91192.0,0.07614931]
[1764302650358,0.002,91193.0,91192.0,0.07614931]
[1764302651968,0.005,91193.0,91192.0,0.07614931]
[1764302652268,0.008,91193.0,91192.0,0.07614931]
[1764302652865,0.0189687,91193.0,91192.0,0.07614931]
[1764302654366,0.4189687,91193.0,91192.0,0.07614931]
[1764302657357,0.408,91193.0,91192.0,0.07614931]
[1764302663356,0.408,91193.0,91192.0,0.17482982]
[1764302665175,0.408,91193.0,91192.0,0.07614931]
[1764302665766,0.138,91193.0,91192.0,0.07614931]
[1764302665976,0.328,91193.0,91192.0,0.07614931]
[1764302666173,0.01113283,91196.0,91195.0,0.04374]
[1764302666174,0.00016443,91196.0,91195.0,0.04374]
[1764302666375,0.0169663,91213.0,91212.0,0.05685]
[1764302666674,0.4269663,91213.0,91212.0,0.05685]
[1764302667776,0.4329663,91213.0,91212.0,0.05685]
[1764302668677,0.4279663,91213.0,91212.0,0.05685]
[1764302668863,0.006,91211.0,91210.0,0.07895844]
[1764302669067,0.0169666,91210.0,91209.0,0.07895844]
[1764302669275,0.3869666,91210.0,91209.0,0.07895844]
[1764302670470,0.3869666,91210.0,91208.0,0.09206844]
[1764302670671,0.006,91209.0,91208.0,0.11336844]
[1764302670974,0.456,91209.0,91208.0,0.11336844]
[1764302671679,0.456,91209.0,91208.0,0.13580844]
[1764302671880,0.456,91209.0,91208.0,0.05685]
[1764302672485,0.457,91209.0,91208.0,0.05685]
[1764302673077,0.457,91209.0,91208.0,0.13574524]
[1764302673782,0.456,91209.0,91208.0,0.13574524]
[1764302674579,0.456,91209.0,91208.0,0.0678169]
[1764302675076,0.456,91209.0,91208.0,0.05685]
[1764302675277,0.456,91209.0,91208.0,0.07453228]
[1764302680085,0.456,91209.0,91208.0,0.15338565]
[1764302681179,0.456,91209.0,91208.0,0.07453228]
[1764302681972,0.45,91209.0,91208.0,0.07453228]
[1764302682380,0.0169657,91218.0,91217.0,0.04489]
[1764302682682,0.4469657,91218.0,91217.0,0.04489]
[1764302684088,0.4489657,91218.0,91217.0,0.04489]
[1764302684680,0.438,91218.0,91217.0,0.04489]
[1764302687187,0.006,91215.0,91214.0,0.07884045]
[1764302687388,0.0169661,91214.0,91213.0,0.07884045]
[1764302687589,0.3969661,91214.0,91213.0,0.07884045]
[1764302687791,0.006,91211.0,91210.0,0.12373045]
[1764302687988,0.406,91211.0,91210.0,0.12373045]
[1764302688589,0.406,91211.0,91210.0,0.04489]
[1764302690086,0.407,91211.0,91210.0,0.12371343]
[1764302691889,0.4179665,91211.0,91210.0,0.12371343]
[1764302692094,0.4179665,91211.0,91210.0,0.04489]
[1764302700690,0.4179665,91211.0,91210.0,0.02203]
[1764302700890,0.4179665,91211.0,91210.0,0.04489]
[1764302708997,0.407,91211.0,91210.0,0.04489]
[1764302710296,0.047,91211.0,91210.0,0.04489]
[1764302710498,0.417,91211.0,91210.0,0.04489]
[1764302710704,0.417,91211.0,91210.0,0.0558566]
[1764302713305,0.417,91211.0,91210.0,0.04489]
[1764302713608,0.417,91211.0,91210.0,0.0558566]
[1764302716302,0.417,91211.0,91210.0,0.04489]
[1764302717403,0.417,91211.0,91210.0,0.02203]
[1764302717602,0.006,91209.0,91208.0,0.01768228]
[1764302717812,0.006,91207.0,91206.0,0.03429]
[1764302718006,0.376,91207.0,91206.0,0.03429]
[1764302718214,0.376,91207.0,91206.0,0.0556]
[1764302719409,0.006,91205.0,91204.0,0.01311]
[1764302719615,0.0169673,91204.0,91203.0,0.12041248]
[1764302719911,0.4369673,91204.0,91203.0,0.02171443]
[1764302721103,0.4369673,91204.0,91203.0,0.10066008]
[1764302721510,0.4369673,91204.0,91203.0,0.11661142]
[1764302721713,0.4369673,91204.0,91203.0,0.15066142]
[1764302721909,0.0139669,91208.0,91207.0,0.04286]
[1764302722108,0.006,91214.0,91213.0,0.04286]
[1764302722305,0.406,91214.0,91213.0,0.04286]
[1764302722903,0.006,91214.0,91213.0,0.04286]
[1764302723104,0.013,91214.0,91213.0,0.04286]
[1764302723310,0.003,91214.0,91213.0,0.04286]
[1764302723512,0.006,91214.0,91213.0,0.04286]
[1764302724020,0.006,91214.0,91213.0,0.0538263]
[1764302725122,0.009,91214.0,91213.0,0.0538263]
[1764302730724,0.419,91214.0,91213.0,0.0538263]
[1764302730921,0.419,91214.0,91213.0,0.07036214]
[1764302731220,0.09290843,91257.0,91221.0,0.0538253]
[1764302731411,0.1598604,91250.0,91249.0,0.0431]
[1764302731615,0.57138763,91250.0,91249.0,0.0431]
[1764302731818,0.0169624,91245.0,91244.0,0.05669]
[1764302732020,0.4369624,91245.0,91244.0,0.05669]
[1764302733020,0.0169634,91237.0,91236.0,0.02245]
[1764302733324,0.4369634,91237.0,91236.0,0.05669]
[1764302734514,0.4389634,91237.0,91236.0,0.05669]
[1764302739421,0.4389634,91237.0,91236.0,0.0733042]
[1764302741626,0.4389634,91237.0,91236.0,0.0166142]
[1764302741928,0.006,91236.0,91235.0,0.00016443]
[1764302742128,0.396,91236.0,91235.0,0.02261443]
[1764302742324,0.396,91236.0,91235.0,0.04416443]
[1764302743014,0.397,91236.0,91235.0,0.04416443]
[1764302743534,0.397,91236.0,91235.0,0.05512803]
[1764302744426,0.396,91236.0,91235.0,0.05512803]
[1764302744625,0.397,91236.0,91235.0,0.05512803]
[1764302744830,0.397,91236.0,91235.0,0.07129039]
[1764302746327,0.398,91236.0,91235.0,0.07129039]
[1764302747232,0.398,91236.0,91235.0,0.06032679]
[1764302748033,0.398,91236.0,91235.0,0.01632679]
[1764302748624,0.398,91236.0,91235.0,0.03877679]
[1764302750135,0.398,91236.0,91235.0,0.01632679]
[1764302753430,0.398,91236.0,91235.0,0.06032679]
[1764302764532,0.008,91236.0,91235.0,0.06032679]
[1764302764737,0.388,91236.0,91235.0,0.06032679]
[1764302768550,0.387,91236.0,91235.0,0.06032679]
[1764302768948,0.373,91236.0,91235.0,0.06032679]
[1764302769140,0.374,91236.0,91235.0,0.06032679]
[1764302770053,0.114,91236.0,91235.0,0.06032679]
[1764302770742,0.004,91236.0,91235.0,0.06032679]
[1764302770942,0.104,91236.0,91235.0,0.06032679]
[1764302773848,0.101,91236.0,91235.0,0.06032679]
[1764302774151,0.001,91236.0,91235.0,0.06032679]
[1764302774555,0.0109619,91250.0,91249.0,0.04247]
[1764302774556,0.0139619,91250.0,91249.0,0.04247]
[1764302774744,0.4369619,91250.0,91249.0,0.04247]
[1764302775652,0.4409619,91250.0,91249.0,0.04247]
[1764302775958,0.4419619,91250.0,91249.0,0.0534319]
[1764302776745,0.4419619,91250.0,91249.0,0.04247]
[1764302779650,0.4419619,91250.0,91249.0,0.05741172]
[1764302779955,0.431,91250.0,91249.0,0.05741172]
[1764302786454,0.431,91250.0,91249.0,0.01494172]
[1764302786661,0.006,91245.0,91244.0,0.0349]
[1764302786857,0.006,91245.0,91244.0,0.05771]
[1764302786858,0.436,91245.0,91244.0,0.05771]
[1764302787849,0.438,91245.0,91244.0,0.05771]
[1764302788050,0.4489624,91245.0,91244.0,0.05771]
[1764302789656,0.4489624,91245.0,91244.0,0.07265172]
[1764302789956,0.4489624,91245.0,91244.0,0.03664172]
[1764302790351,0.4489624,91245.0,91244.0,0.05945172]
[1764302794061,0.4489624,91245.0,91244.0,0.03664172]
[1764302794253,0.4489624,91245.0,91244.0,0.01494172]
[1764302794458,0.0169629,91241.0,91240.0,0.069503]
[1764302794662,0.4169629,91241.0,91240.0,0.069503]
[1764302794958,0.4169629,91241.0,91240.0,0.08471224]
[1764302796458,0.4179629,91241.0,91240.0,0.07374924]
[1764302804674,0.8379629,91241.0,91240.0,0.07374924]
[1764302806366,0.5579629,91241.0,91240.0,0.07374924]
[1764302806967,0.147,91241.0,91240.0,0.07374924]
[1764302807173,0.554,91241.0,91240.0,0.15266914]
[1764302807575,0.274,91241.0,91240.0,0.15266914]
[1764302807966,0.474,91241.0,91240.0,0.15266914]
[1764302808171,0.204,91241.0,91240.0,0.15266914]
[1764302809377,0.001,91241.0,91240.0,0.07374924]
[1764302823893,0.397,91241.0,91240.0,0.07374924]
[1764302825596,0.396,91241.0,91240.0,0.07574924]
[1764302826897,1.206,91241.0,91240.0,0.01720924]
[1764302827098,0.006,91229.0,91228.0,0.12349955]
[1764302827300,0.416,91229.0,91228.0,0.04461]
[1764302827495,0.416,91229.0,91228.0,0.0577]
[1764302827496,0.4269643,91229.0,91228.0,0.0577]
[1764302827695,0.4269643,91229.0,91228.0,0.07197627]
[1764302835698,0.41,91229.0,91228.0,0.15086582]
[1764302835896,0.41,91229.0,91228.0,0.07197627]
[1764302836200,0.166,91229.0,91228.0,0.07197627]
[1764302841089,0.3669643,91229.0,91228.0,0.07197627]
[1764302842795,0.006,91229.0,91228.0,0.07197627]
[1764302843197,0.003,91229.0,91228.0,0.07197627]
[1764302843509,0.0169637,91235.0,91234.0,0.04545]
[1764302843706,0.7669637,91235.0,91234.0,0.04545]
[1764302843907,0.7669637,91235.0,91234.0,0.0564137]
[1764302844897,0.7689637,91235.0,91234.0,0.0564137]
[1764302850705,0.7669637,91235.0,91234.0,0.0564137]
[1764302855807,0.7669637,91235.0,91234.0,0.04545]
[1764302856317,0.7669637,91235.0,91234.0,0.12424367]
[1764302857518,0.7679637,91235.0,91234.0,0.12424367]
[1764302858413,0.7679637,91235.0,91234.0,0.04545]
[1764302862012,0.7679637,91235.0,91234.0,0.0564137]
[1764302862221,0.7679637,91235.0,91234.0,0.13520737]
[1764302865832,0.7679637,91235.0,91234.0,0.12424367]
[1764302875739,0.757,91235.0,91234.0,0.04545]
[1764302878143,0.377,91235.0,91234.0,0.04545]
[1764302878440,0.001,91235.0,91234.0,0.04545]
[1764302879036,0.0169624,91245.0,91244.0,0.04553]
[1764302879235,0.7369624,91245.0,91244.0,0.04553]
[1764302880142,0.7399624,91245.0,91244.0,0.04553]
[1764302881641,0.0169628,91242.0,91241.0,0.07896048]
[1764302881845,0.8469628,91242.0,91241.0,0.07896048]
[1764302882346,0.8469628,91242.0,91241.0,0.10216048]
[1764302882645,0.8489628,91242.0,91241.0,0.10216048]
[1764302883245,0.8489628,91242.0,91241.0,0.0232]
[1764302883447,0.8489628,91242.0,91241.0,0.0465]
[1764302884845,0.8489628,91242.0,91241.0,0.06202961]
[1764302888151,0.8489628,91242.0,91241.0,0.01552961]
[1764302888346,0.0169635,91236.0,91235.0,0.02336443]
[1764302888546,0.8169635,91236.0,91235.0,0.02336443]
[1764302889854,0.8179635,91236.0,91235.0,0.03890329]
[1764302891255,0.8169635,91236.0,91235.0,0.03890329]
[1764302891457,0.8189635,91236.0,91235.0,0.03890329]
[1764302891759,0.8189635,91236.0,91235.0,0.06220329]
[1764302892056,0.8169635,91236.0,91235.0,0.06220329]
[1764302892359,0.8189635,91236.0,91235.0,0.06220329]
[1764302895255,0.002,91236.0,91235.0,0.06220329]
[1764302895456,0.005,91236.0,91235.0,0.06220329]
[1764302895663,0.002,91236.0,91235.0,0.06220329]
[1764302895853,0.002,91236.0,91235.0,0.48220329]
[1764302896761,0.0169619,91250.0,91249.0,0.04517]
[1764302897056,0.8069619,91250.0,91249.0,0.04517]
[1764302897557,0.006,91250.0,91249.0,0.04517]
[1764302897761,0.00616443,91254.0,91253.0,0.04517]
[1764302897967,0.00316443,91254.0,91253.0,0.04517]
[1764302898259,0.00016443,91254.0,91253.0,0.04517]
[1764302898470,0.0109595,91270.0,91256.0,0.05892]
[1764302898659,0.0109598,91267.0,91256.0,0.05892]
[1764302899568,0.00016443,91266.0,91256.0,0.05892]
[1764302899966,0.0109602,91264.0,91256.0,0.05892]
[1764302904965,0.00016443,91266.0,91256.0,0.05892]
[1764302906866,0.00016443,91266.0,91256.0,0.43892]
[1764302909470,0.01112443,91266.0,91256.0,0.43892]
[1764302909871,0.00016443,91266.0,91256.0,0.43892]
[1764302911369,0.00016443,91266.0,91265.0,0.05613]
[1764302911370,0.00616443,91266.0,91265.0,0.05613]
[1764302911566,0.41616443,91266.0,91265.0,0.05613]
[1764302913573,0.41216443,91266.0,91265.0,0.05613]
[1764302914167,0.00216443,91266.0,91265.0,0.46613]
[1764302914676,0.14873625,91280.0,91279.0,0.0536183]
[1764302914872,0.8169582,91280.0,91279.0,0.04266]
[1764302916170,0.5879582,91280.0,91279.0,0.0536183]
[1764302916371,0.8379582,91280.0,91279.0,0.0536183]
[1764302916575,0.8429582,91280.0,91279.0,0.04266]
[1764302921672,0.832,91280.0,91279.0,0.05837373]
[1764302921875,0.8429582,91280.0,91279.0,0.05837373]
[1764302926473,0.832,91280.0,91279.0,0.05837373]
[1764302926677,0.842,91280.0,91279.0,0.05837373]
[1764302927478,0.412,91280.0,91279.0,0.05837373]
[1764302928081,0.832,91280.0,91279.0,0.05837373]
[1764302928687,0.832,91280.0,91279.0,0.03688373]
[1764302929181,0.832,91280.0,91279.0,0.01571373]
[1764302929383,0.006,91277.0,91276.0,0.0675387]
[1764302929677,0.766,91277.0,91276.0,0.0675387]
[1764302929882,0.766,91277.0,91276.0,0.05658]
[1764302930678,0.77,91277.0,91276.0,0.05658]
[1764302931686,0.771,91277.0,91276.0,0.05658]
[1764302931885,0.771,91277.0,91276.0,0.07229609]
[1764302940193,0.771,91277.0,91276.0,0.01571609]
[1764302940384,0.006,91274.0,91273.0,0.07885819]
[1764302940578,0.0169591,91273.0,91272.0,0.05658]
[1764302940786,0.4469591,91273.0,91272.0,0.03743296]
[1764302940991,0.4469591,91273.0,91272.0,0.07284296]
[1764302941392,0.4469591,91273.0,91272.0,0.15170115]
[1764302941583,0.8169591,91273.0,91272.0,0.01626296]
[1764302941785,0.8199591,91273.0,91270.0,0.07885819]
[1764302942091,0.006,91271.0,91270.0,0.10159819]
[1764302942292,0.786,91271.0,91270.0,0.12264819]
[1764302943295,0.786,91271.0,91270.0,0.04379]
[1764302943893,0.787,91271.0,91270.0,0.04379]
[1764302944791,0.789,91271.0,91270.0,0.04379]
[1764302945396,0.789,91271.0,91270.0,0.06013687]
[1764302956995,0.789,91271.0,91270.0,0.06120687]
[1764302962709,0.439,91271.0,91270.0,0.06120687]
[1764302962894,0.789,91271.0,91270.0,0.06120687]
[1764302965103,0.419,91271.0,91270.0,0.06120687]
[1764302965314,0.869,91271.0,91270.0,0.06120687]
[1764302968111,0.419,91271.0,91270.0,0.06120687]
[1764302970418,0.413,91271.0,91270.0,0.06120687]
[1764302970720,0.003,91271.0,91270.0,0.06120687]
[1764302971107,0.006,91271.0,91270.0,0.06120687]
[1764302971519,0.009,91271.0,91270.0,0.06120687]
[1764302972114,0.009,91271.0,91270.0,0.15990492]
[1764302972421,0.009,91271.0,91270.0,0.06120687]
[1764302974516,0.006,91271.0,91270.0,0.06120687]
[1764302974717,0.003,91271.0,91270.0,0.06120687]
[1764302975324,0.769,91271.0,91270.0,0.03908687]
[1764302975825,0.769,91271.0,91270.0,0.06138687]
[1764302980219,0.769,91271.0,91270.0,0.14024947]
[1764302982223,0.519,91271.0,91270.0,0.06138687]
[1764302983329,0.799,91271.0,91270.0,0.06138687]
[1764302997744,0.129,91271.0,91270.0,0.06138687]
[1764303001540,0.126,91271.0,91270.0,0.06138687]
[1764303001940,0.129,91271.0,91270.0,0.06138687]
[1764303002836,0.429,91271.0,91270.0,0.06138687]
[1764303003541,0.429,91271.0,91270.0,0.03908687]
[1764303003741,0.429,91271.0,91270.0,0.06033687]
[1764303014360,0.429,91271.0,91270.0,0.15891683]
[1764303015260,0.429,91271.0,91270.0,0.06033687]
[1764303015760,0.423,91271.0,91270.0,0.06033687]
[1764303016459,0.00327387,91286.0,91285.0,0.0560476]
[1764303016851,0.00027387,91286.0,91285.0,0.0560476]
[1764303017055,0.14270537,91310.0,91290.0,0.01333]
[1764303017356,0.78,91310.0,91303.0,0.0560454]
[1764303018262,0.0109547,91309.0,91298.0,0.10108658]
[1764303018558,0.0109547,91309.0,91298.0,0.04509]
[1764303018559,0.0109551,91306.0,91298.0,0.04509]
[1764303018762,0.7709551,91306.0,91298.0,0.04509]
[1764303019559,0.7709551,91306.0,91298.0,0.04609]
[1764303019859,0.7709551,91306.0,91299.0,0.0109559]
[1764303020050,0.7709551,91306.0,91299.0,0.04509]